Workbook

Sheet FR-P&L
A2: PHYTO CHEM (INDIA) LIMITED
A3: CIN : L24110TG1989PLC009500
A4: Registered Office : Survey No.628, Temple Street, Bonthapally-502313,
A5: Gummadidala Mandal, Sangareddy District, Telangana.
A6: Corporate Office : No.8-3-229/23, First Floor, Thaherville,
A7: Yousufguda Check Post, Hyderabad - 500 045, Telangana.
A8: Tel : 040-23557712 / 23557713, Fax : 040-23557714.
A9: Email: info@phytochemindia.com, Website: www.phytochemindia.com
A11: Statement of Unaudited Financial Results for the Quarter Ended June 30, 2022
A12: (Rs. in Lakhs Except EPS)
A13: Sl. No. | B13: Particulars | C13: Quarter Ended | F13: Previous Year Ended
C14: (Unaudited) | D14: Audited | E14: (Unaudited) | F14: Audited
C15: 30th June 2022 | D15: 31st March 2022 | E15: 30th June 2021 | F15: 31st March 2022
A16: 1 | B16: Revenue from operations | C16: 140.531349 | D16: 344.38 | E16: 167.5500479 | F16: 2311.94
A17: 2 | B17: Other income | C17: 0.115 | D17: 12.98 | E17: 80.52205 | F17: 129.3
A18: 3 | B18: Total Revenue (1+ 2) | C18: =C16+C17 -> 140.646349 | D18: =D16+D17 -> 357.36 | E18: =E16+E17 -> 248.0720979 | F18: =F16+F17 -> 2441.24
A19: 4 | B19: Expenses:
B20: Cost of Raw materials consumed | C20: 193.9153115 | D20: 109.76 | E20: 203.9282636 | F20: 1358.98
B21: Purchase of Stock-In-Trade | C21: 0 | D21: 0 | E21: 0 | F21: 0
B22: Changes in inventories of finished goods work-in-progress and Stock-in-Trade | C22: -107.2079177 | D22: -36.1 | E22: -10.3635015 | F22: 162.54
B23: Employee benefits expense | C23: 77.576199 | D23: 82.7 | E23: 78.28462 | F23: 316.72
B24: Finance costs | C24: 49.7884552 | D24: 59.19 | E24: 49.821917 | F24: 209.53
B25: Depreciation and amortization expense | C25: 10.14671 | D25: 10.32 | E25: 10.14263 | F25: 40.92
B26: Other expenses | C26: 58.5702426 | D26: 135.53 | E26: 63.2483807 | F26: 332.83
B27: Total expenses | C27: =SUM(C20:C26)+0.01 -> 282.7990006 | D27: =SUM(D20:D26) -> 361.4 | E27: 395.0623098 | F27: =SUM(F20:F26) -> 2421.52
A28: 5 | B28: Profit / (Loss) before Tax and exceptional items (3-4) | C28: =C18-C27 -> -142.1526516 | D28: =D18-D27 -> -4.04 | E28: =E18-E27 -> -146.9902119 | F28: =F18-F27 -> 19.72
A29: 6 | B29: Exceptional Items | C29: 0 | D29: 0 | E29: 0 | F29: 0
A30: 7 | B30: Profit / (Loss) before extraordinary items & tax (5-6) | C30: =C28-C29 -> -142.1526516 | D30: -4.04 | E30: =E28-E29 -> -146.9902119 | F30: =+F28-F29 -> 19.72
A31: 8 | B31: Extraordinary Items | C31: 0 | D31: 0 | E31: 0 | F31: 0
A32: 9 | B32: Profit before tax (7 -8) | C32: =C30-C31 -> -142.1526516 | D32: =D30-D31 -> -4.04 | E32: =E30-E31 -> -146.9902119 | F32: =F30-F31 -> 19.72
A33: 10 | B33: Tax Expense:
B34: (a) Current tax | C34: 0 | D34: 4.38 | E34: 0 | F34: 10.63
B35: (b) Deferred tax | C35: 14.83897325 | D35: -13.22 | E35: -1.59345 | F35: -13.89
B36: Total Tax Expense (a+b) | C36: =C34+C35 -> 14.83897325 | D36: -8.84 | E36: -1.59345 | F36: =F34+F35 -> -3.26
A37: 11 | B37: Net Profit / (Loss) for the period after tax (9 - 10) | C37: =C32-C36 -> -156.9916249 | D37: =D32-D36 -> 4.8 | E37: =E32-E36 -> -145.3967619 | F37: =F32-F36 -> 22.98
A38: 12 | B38: TotalComprehensive Income (Net of Tax) | C38: -1.170415323 | D38: 1.64 | E38: 4.26764802 | F38: 4
A39: 13 | B39: Total Comprehensive Income (Net of Tax) for the period comprising Profit / Loss for the period (after tax) and other comprehensive Income. | C39: =+C37+C38 -> -158.1620402 | D39: =+D37+D38 -> 6.44 | E39: =+E37+E38 -> -141.1291139 | F39: =+F37+F38 -> 26.98
A40: 14 | B40: Paid up Equity Share Capital (Face value of Rs.10.00 each) | C40: 430.02 | D40: 430.02 | E40: 430.02 | F40: 430.02
A41: 15 | B41: Other Equity excluding revaluation reserves | C41: -- | D41: -- | E41: -- | F41: 615.42
A42: 16 | B42: Earnings per equity share: - In Rs. (Not annualised for Quarter Ended Results)
B43: (1) Basic | C43: =C37/C40*1000/100 -> -3.650798215 | D43: 0.1118552625 | E43: =E37/E40*1000/100 -> -3.381162781 | F43: =F37/F40*1000/100 -> 0.5343937491
B44: (2) Diluted | C44: =C37/C40*1000/100 -> -3.650798215 | D44: 0.1118552625 | E44: =E37/E40*1000/100 -> -3.381162781 | F44: =F37/F40*1000/100 -> 0.5343937491
A45: 1 | B45: These above unaudited financial results have been prepared in accordance with Indian Accounting Standards (Ind AS) as prescribed under Section 133 of Companies Act, 2013 read with Rule 3 of the Companies (Indian Accounting Standards) Rules, 2015, as amended.
A46: 2 | B46: These unaudited results were reviewed by the Audit Committee of the Board and approved by the Board of Directors of the Company at their meeting held on August 08, 2022. The Statutory auditors of the Company have carried out a "Limited Review" of the above unaudited results as per Regulation 33 of the SEBI (Listing Obligation and Disclosure Requirements) Regulation, 2015.
A47: 3 | B47: The Company operates mainly in one segment i.e., Manufacturing and Marketing of Pesticide Formulations and small way in real estate activity. There are no transactions of real estate activity during the quarter ended 30-06-2022. As at 30th June, 2022, the Company has deployed Rs.96.79 Lakhs in Real Estate activity and the rest of amount is deployed in Pesticides activity only.
A48: 4 | B48: The COVID-19 Pandemic continued to impact the performance of the Company.
A49: 5 | B49: The Company has decided to exercise the option permitted U/s 115BAA of the Income Tax Act 1961 and Current Tax is worked out accordingly.
A50: 6 | B50: The figures of the last quarter of F.Y.2021-22 are the balancing figures between audited figures in respect of the full financial year upto March 31, 2022 and the unaudited published year-to-date figures upto December 31, 2021, being the date of the end of the third quarter of the financial year which were subjected to limited review.
A51: 7 | B51: The figures for the previous period / year have been rearranged/regrouped, wherever necessary to conform to the current period's / year's classification.
A52: 8 | B52: The above is an extract of the detailed format of Quarterly Financial Results filed with the Stock Exchange under Regulations 33 of the SEBI (Listing and other Disclosures Requirements) Regulations, 2015. The said Financial Results are also available on the website of Stock Exchange: www.bseindia.com and on the Company's website: www.phytochemindia.com.
D54: For and on behalf of the Board
E56: Y.Nayudamma
A57: Place : Hyderabad | E57: Managing Director
A58: Date : 08-08-2022 | E58: DIN : 00377721

Sheet FR-BS
B1: Phyto Chem (India) Limited
B2: :: 2 ::
B3: (Rs. In Lakhs)
B4: Particulars | D4: Ind AS | E4: Ind AS
D5: June 30, 2022 | E5: June 30, 2021
B6: Assets:
B7: Non-Current Assets
B8: (a) Property , Plant and Equipment | D8: 303.26 | E8: 339.8076388
B9: (b) Capital Work In Progress | D9: 0 | E9: 0
B10: (c) Investment Property | D10: 0 | E10: 0
B11: (d) Intangible Asset | D11: 0 | E11: 0
B12: (e) Financial Assets
B13: i) Investments | D13: 15.86 | E13: 20.9192324
B14: ii) Loans | D14: 18.21 | E14: 19.22715
B15: iii) Other Financial Assets | D15: 96.9 | E15: 71.4561837
B16: (f) Deferred Tax Assets (Net) | D16: 0 | E16: 0
B17: (g) Other Non Current Assets | D17: 0 | E17: 0
D18: =SUM(D8:D17) -> 434.23 | E18: =SUM(E8:E17)+0.01 -> 451.4202049
B19: Current Assets
B20: (a) Inventories | D20: 1575.551426 | E20: 1749.122776
B21: (b) Financial Assets
B22: i) Trade Receivables | D22: 1584.487499 | E22: 1910.471203
B23: ii) Cash and cash equivalents | D23: 44.4221371 | E23: 4.6118023
B24: iii) Bank Balances Other than Cash and
B25: cash equivalents | D25: 0 | E25: 6.43888
B26: iv) Loans and Advances | D26: 0 | E26: 0
B27: v) Other Financial Assets | D27: 161.1820008 | E27: 188.9048641
B28: (c) Current Tax Assets (Net) | D28: 0 | E28: 0
B29: (d) Other Current Assets | D29: 0 | E29: 0
D30: =SUM(D20:D29) -> 3365.643062 | E30: =SUM(E20:E29)-0.01 -> 3859.539526
B31: Total Assets | D31: =D18+D30 -> 3799.873062 | E31: =E18+E30 -> 4310.959731
B33: Equity & Liabilities:
B34: Equity
B35: (a) Equity Share Capital | D35: 430.02 | E35: 430.02
B36: (b) Other equity | D36: 457.2616923 | E36: 447.3029213
D37: =SUM(D35:D36) -> 887.2816923 | E37: =SUM(E35:E36) -> 877.3229213
B38: Liabilities
B39: Non-Current Liabilities
B40: (a) Financials Liabilities
B41: i) Borrowings | D41: 382.1921031 | E41: 442.7324797
B42: ii) Other financial liabilities | D42: 124.6041859 | E42: 121.5944477
B43: (b) Provisions | D43: 0 | E43: 0
B44: (c) Deferred tax liabilities - Net | D44: -31.08580463 | E44: -34.2570269
D45: =SUM(D41:D44)-0.01 -> 475.7004844 | E45: =SUM(E41:E44)-0.01 -> 530.0599005
B46: Current liabilities
B47: (a) Financial Liabilities
B48: i) Borrowings | D48: 1369.273103 | E48: 1560.08703
B49: ii) Trade Payables
B50: 1) Total Outstanding dues to MSME | D50: 0 | E50: 0
B51: 2) Total Outstanding dues other than MSME | D51: 647.9996142 | E51: 887.1915059
B52: iii) Other financial liabilities | D52: 142.2063598 | E52: 110.785384
B53: (b) Other Current Liabilities | D53: 138.5578261 | E53: 218.1644943
B54: (c) Provisions | D54: 138.852323 | E54: 127.3484978
B55: (d) Current Tax Liability (Net) | D55: 0 | E55: 0
B56: Total Current Liabilities | D56: =SUM(D47:D55) -> 2436.889226 | E56: =SUM(E47:E55) -> 2903.576912
C57: Total Liabilities | D57: =D45+D56 -> 2912.58971 | E57: =E45+E56 -> 3433.636812
B58: Total Equity & Liabilities | D58: =D37+D57 -> 3799.871403 | E58: =E37+E57 -> 4310.959734
D60: For and on behalf of the Board
D63: Y.Nayudamma
B64: Place : Hyderabad | D64: Managing Director
B65: Date : 08-08-2022 | D65: DIN : 00377721

Sheet EXTRACT
A1: PHYTO CHEM (INDIA) LIMITED
A2: CIN : L24110TG1989PLC009500
A3: Registered Office : Survey No.628, Temple Street, Bonthapally-502313,
A4: Gummadidala Mandal, Sangareddy District, Telangana.
A5: Corporate Office : No.8-3-229/23, First Floor, Thaherville,
A6: Yousufguda Check Post, Hyderabad - 500 045, Telangana.
A7: Tel : 040-23557712 / 23557713, Fax : 040-23557714.
A8: Email: info@phytochemindia.com, Website: www.phytochemindia.com
A10: Extract of Unaudited Financial Results For The Quarter Ended June 30, 2022
E11: (Rs. in Lakhs Except EPS)
A12: Particulars | C12: Quarter Ended | F12: Previous Year Ended
C13: (Unaudited) | D13: Audited | E13: (Unaudited) | F13: Audited
C14: 30th June 2022 | D14: 31st March 2022 | E14: 30th June 2021 | F14: 31st March 2022
A15: 1 | B15: Total Income from operations (net) | C15: 140.65 | D15: 357.36 | E15: 248.07 | F15: 2441.24
A16: 2 | B16: Net Profit / (Loss) before tax and exceptional items | C16: -142.15 | D16: -4.04 | E16: -146.99 | F16: 19.72
A17: 3 | B17: Net Profit / (Loss) before tax and after exceptional items | C17: -142.15 | D17: -4.04 | E17: -146.99 | F17: 19.72
A18: 4 | B18: Net Profit / (Loss) after tax and exceptional items | C18: -156.99 | D18: 4.8 | E18: -145.4 | F18: 22.98
A19: 5 | B19: Total Comprehensive Income (Net of Tax) for the period Comprising Profit / (Loss) for the period (after tax) and Other comprehensive Income. | C19: -158.16 | D19: 6.44 | E19: -141.13 | F19: 26.98
A20: 6 | B20: Paid-up equity Share Capital (Face Value Rs.10/- per share) | C20: 430.02 | D20: 430.02 | E20: 430.02 | F20: 430.02
A21: 7 | B21: Other Equity | C21: -- | D21: -- | E21: -- | F21: 615.42
A22: 8 | B22: Earnings per share (of Rs.10/- each) Basic & Diluted Rs. | C22: -3.65 | D22: 0.11 | E22: -3.38 | F22: 0.53
A23: NOTES :-
A24: 1 | B24: These above unaudited financial results have been prepared in accordance with Indian Accounting Standards (Ind AS) as prescribed under Section 133 of Companies Act, 2013 read with Rule 3 of the Companies (Indian Accounting Standards) Rules, 2015, as amended.
A25: 2 | B25: These unaudited results were reviewed by the Audit Committee of the Board and approved by the Board of Directors of the Company at their meeting held on August 08, 2022. The Statutory auditors of the Company have carried out a "Limited Review" of the above unaudited results as per Regulation 33 of the SEBI (Listing Obligation and Disclosure Requirements) Regulation, 2015.
A26: 3 | B26: The Company operates mainly in one segment i.e., Manufacturing and Marketing of Pesticide Formulations and small way in real estate activity. There are no transactions of real estate activity during the quarter ended 30-06-2022. As at 30th June, 2022, the Company has deployed Rs.96.79 Lakhs in Real Estate activity and the rest of amount is deployed in Pesticides activity only.
A27: 4 | B27: The COVID-19 Pandemic continued to impact the performance of the Company.
A28: 5 | B28: The Company has decided to exercise the option permitted U/s 115BAA of the Income Tax Act 1961 and Current Tax is worked out accordingly.
A29: 6 | B29: The figures of the last quarter of F.Y.2021-22 are the balancing figures between audited figures in respect of the full financial year upto March 31, 2022 and the unaudited published year-to-date figures upto December 31, 2021, being the date of the end of the third quarter of the financial year which were subjected to limited review.
A30: 7 | B30: The figures for the previous period / year have been rearranged/regrouped, wherever necessary to conform to the current period's / year's classification.
A31: 8 | B31: The above is an extract of the detailed format of Quarterly Financial Results filed with the Stock Exchange under Regulations 33 of the SEBI (Listing and other Disclosures Requirements) Regulations, 2015. The said Financial Results are also available on the website of Stock Exchange: www.bseindia.com and on the Company's website: www.phytochemindia.com.
E32: For and on behalf of the Board
E35: Y.Nayudamma
A36: Place : Hyderabad | E36: Managing Director
A37: Date : 08-08-2022 | E37: DIN : 00377721

Sheet LRR
